Cogmind - Beta 17 @@@ ROGUE MODE // 2026.08.24 @ 11:22:58 Player: Six of Ten Result: Destroyed by H-55 Commando with Gauss Rifle Performance ------------- Evolutions (2) 1000 Regions Visited (4) 800 Robots Destroyed (75) 375 Value Destroyed (2612) 2612 Prototype IDs (3) 60 Alien Tech Used (0) 0 Bonus (201) 201 TOTAL SCORE: 5048 Bonus ------- High Alert Combat Kills 17 Entered Garrisons 200 Friendly Fire -16 Cogmind --------- Core Integrity 0/550 Matter 295/300 Energy 18/100 System Corruption 2% Temperature Cool (0) Movement Rolling (115) Ox3 Location -8/Garrison Parts ------- > --- POWER (1) -------- (None) > --- PROPULSION (3) --- Light Treads Wheel > --- UTILITY (4) ------ Improved Heat Sink Improved Heat Sink Large Storage Unit Light Armor Plating > --- WEAPON (3) ------- Beam Rifle Field Laser > --- INVENTORY (15) --- Light Nuclear Core Light Nuclear Core Wheel Improved Heat Sink Small Storage Unit Medium Storage Unit Subdweller Optics Particle Gun Plasma Cannon Plasma Cannon Plasma Cannon Great Maul Peak State ------------ > --- POWER ------------ Makeshift Power Source > --- PROPULSION ------- Spiked Treads Spiked Treads Armored Treads > --- UTILITY ---------- Improved Heat Sink Large Storage Unit Subdweller Optics Light Armor Plating > --- WEAPON ----------- Makeshift Shrapnel Gun Makeshift Shrapnel Gun Flamer > --- INVENTORY -------- Light Ion Engine Subdweller Power Source Light Treads Wheel Compact Wheel Compact Wheel Subdweller Monowheel Improved Heat Sink Small Storage Unit Medium Storage Unit Sensor Array Hacking Suite Welding Torch Shrapnel Trap [Rating: 30] Favorites ----------- Power Light Nuclear Core Engine Makeshift Power Source Power Core Light Nuclear Core Propulsion Light Treads Treads Light Treads Leg Aluminum Leg Wheel Subdweller Monowheel Utility Large Storage Unit Device Improved Heat Sink Storage Large Storage Unit Hackware Hacking Suite Protection Medium Armor Plating Weapon Particle Gun Energy Gun Particle Gun Energy Cannon Beam Cannon Ballistic Gun Assault Rifle Ballistic Cannon Battle Cannon Special Weapon Flamer Build | -11 -10 -10 -8 -8 ------- Run | Yrd Mat Sub Mat Gar Slots Evolved 4 | . . . 4 . Power . | . . . . . Propulsion 1 | . . . 1 . Utility 2 | . . . 2 . Weapon 1 | . . . 1 . Parts Attached 54 | 7 5 13 18 11 Power 7 | 1 1 1 2 2 Engine 3 | 1 . 1 1 . Core 4 | . 1 . 1 2 Reactor . | . . . . . Propulsion 11 | 2 . 4 2 3 Treads 7 | 2 . 2 2 1 Leg 1 | . . . . 1 Wheel 3 | . . 2 . 1 Hover . | . . . . . Flight . | . . . . . Utility 16 | 2 2 . 8 4 Device 8 | 1 1 . 5 1 Storage 2 | 1 1 . . . Processor . | . . . . . Hackware 1 | . . . 1 . Protection 5 | . . . 2 3 Artifact . | . . . . . Weapon 20 | 2 2 8 6 2 Energy Gun 9 | . . 2 5 2 Energy Cannon 2 | . 2 . . . Ballistic Gun 6 | 2 . 3 1 . Ballistic Cannon 1 | . . 1 . . Launcher . | . . . . . Special Weapon 2 | . . 2 . . Impact Weapon . | . . . . . Slashing Weapon . | . . . . . Piercing Weapon . | . . . . . Special Melee Weapon . | . . . . . Unidentified Prototypes . | . . . . . Parts Lost 25 | . 2 2 13 8 Power 2 | . . . 1 1 Propulsion 6 | . . . 3 3 Utility 6 | . 1 . 3 2 Weapon 11 | . 1 2 6 2 Highest Loss Streak 5 | . 1 1 5 3 To Critical Strikes . | . . . . . Average Backups 13 | 3 12 13 13 14 Power 1 | . 1 1 1 1 Propulsion 4 | 2 4 4 4 1 Utility 4 | . 3 4 4 4 Weapon 2 | . 1 1 2 5 Tool/Special . | . . . . . Unused Backups 13 | . 2 1 4 6 Power 2 | . . . 1 1 Propulsion 5 | . 1 1 2 1 Utility 1 | . . . . 1 Weapon 5 | . 1 . 1 3 Tool/Special . | . . . . . Average Slot Usage (%) 97 | . 98 99 95 97 Engine 1 | . 2 . 3 . Core 10 | . 11 13 5 8 Treads 23 | . 27 27 20 12 Wheel 2 | . . . 4 9 Device 14 | . 13 14 15 18 Storage 11 | . 14 14 9 9 Hackware 1 | . . . 5 . Protection 2 | . . . 5 8 Energy Gun 8 | . . 2 14 26 Energy Cannon 3 | . 10 3 . . Ballistic Gun 9 | . 17 8 8 . Special Weapon 4 | . . 11 2 . Peak Build Rating 30 | 7 12 22 30 27 Average Rating 18 | 5 10 16 25 26 On Entrance 13 | . 7 12 22 27 Avg Prop Armor Cover (%) 14 | . . . 17 11 Naked Turns . | . . . . . Heaviest Build 44 | 13 32 33 43 44 Greatest Support 60 | 40 40 40 60 20 Greatest Overweight (x) 4 | . . 1 3 4 Average Overweight (x) . | . . . 1 2 Largest Inventory Capacity 15 | 8 15 15 15 15 Average Capacity 14 | 7 14 15 15 15 Most Carried 15 | 7 13 15 15 15 Average Carried 13 | 4 12 14 14 14 Final Capacity 15 | 8 15 15 15 15 Final Carried 15 | 7 13 15 15 12 Class Distribution -------------------- 54% | Mutant 20% | Scavenger-Tank 8% | Scavenger-Skirmisher 6% | Derelict-Mutant 6% | Derelict-Tank 3% | Scavenger-Mutant Dominant Class ---------------- Mutant | -10/Materials Mutant | -10/Subcaves Scavenger-Tank | -8/Materials Scavenger-Tank | -8/Garrison Resources | -11 -10 -10 -8 -8 ----------- Run | Yrd Mat Sub Mat Gar Matter Collected 1883 | 254 387 386 691 165 Remotely . | . . . . . Salvage Created 2765 | 28 770 275 1046 646 Parts 150 | 4 47 12 54 33 Haulers Intercepted . | . . . . . Recyclers Shooed 1 | . . . 1 . Parts Field Recycled . | . . . . . Retrieved Matter . | . . . . . Parts Self-Destructed 5 | . . 5 . . Prevented . | . . . . . Parts Restored . | . . . . . Kills | -11 -10 -10 -8 -8 ------- Run | Yrd Mat Sub Mat Gar Combat Hostiles Destroyed 66 | . 16 8 25 17 Guns 54 | . 10 5 23 16 Cannons 10 | . 6 3 1 . Classes Destroyed 14 | 1 3 1 7 2 Worker 1 | . . . 1 . Builder 1 | . . . 1 . Tunneler 1 | 1 . . . . Mechanic 1 | . . . 1 . Operator 1 | . 1 . . . Watcher 4 | . 3 . 1 . Swarmer 10 | . . . 4 6 Grunt 38 | . 16 2 13 7 Brawler 3 | . . . 2 1 Duelist 1 | . . . . 1 Sentry 6 | . . . 5 1 Hunter 1 | . . . 1 . Programmer 1 | . . . . 1 Subdweller 6 | . . 6 . . Best Kill Streak 6 | 1 4 2 6 3 Combat Bots Only 4 | . 3 2 4 3 Max Kills in Single Turn 2 | 1 1 1 2 1 Gunslinging . | . . . . . Exploded . | . . . . . Melee . | . . . . . Uniques/NPCs Destroyed . | . . . . . Combat | -11 -10 -10 -8 -8 -------- Run | Yrd Mat Sub Mat Gar Hostile Shots Fired 426 | . 66 75 172 113 Missed 128 | . 25 28 51 24 Hits 298 | . 41 47 121 89 Melee 4 | . . . . 4 Projectile 294 | . 41 47 121 85 Critical Strikes 17 | . 1 . 6 10 Damage Taken 4461 | . 525 940 1706 1290 Core 734 | . 35 144 256 299 Absorbed by Shields . | . . . . . Regen/Repaired (Parts) 225 | . 225 . . . Core Remaining (%) 64 | 100 . 28 . . Volleys Fired 328 | 1 72 100 97 58 Largest 3 | 2 2 2 3 3 Hottest 193 | 40 120 130 193 193 Shots Fired 692 | 2 144 174 215 157 Gun 523 | 2 96 66 209 150 Cannon 119 | . 48 71 . . Launcher . | . . . . . Special 50 | . . 37 6 7 Kinetic 248 | 2 96 70 80 . Thermal 444 | . 48 104 135 157 Explosive . | . . . . . Electromagnetic . | . . . . . Robot Hit Streak 17 | 1 15 13 17 10 Robot Miss Streak 8 | . 4 2 8 7 Penetration Max . | . . . . . Secondary Targets 7 | . . . 4 3 Max Gunslinging Chain 1 | . . . 1 1 Shots Hit Robots 371 | 1 76 65 144 85 Core Hits 155 | 1 37 18 68 31 Critical Kills 1 | . 1 . . . Critical Parts Destroyed . | . . . . . Critical Strikes 9 | . 1 . 4 4 Burn 8 | . . . 4 4 Destroy 1 | . 1 . . . Melee Attacks . | . . . . . Impact . | . . . . . Slashing . | . . . . . Piercing . | . . . . . Sneak Attacks . | . . . . . Combat Hostiles . | . . . . . Follow-up Attacks . | . . . . . Damage Inflicted 5752 | 11 1004 991 2335 1411 Guns 4954 | 11 778 442 2312 1411 Cannons 775 | . 226 549 . . Explosions . | . . . . . Melee . | . . . . . Ramming . | . . . . . Kinetic 2137 | 11 778 480 868 . Thermal 3615 | . 226 511 1467 1411 Explosive . | . . . . . Electromagnetic . | . . . . . Impact . | . . . . . Slashing . | . . . . . Piercing . | . . . . . Highest Corruption 2 | . . . . 2 Average Corruption 1 | . . . . 1 Corruption Purged . | . . . . . Corruption Blocked . | . . . . . Effects 3 | . . . . 3 Heat Flow Errors 1 | . . . . 1 Data Loss (minor) 1 | . . . . 1 Data Loss (major) 1 | . . . . 1 Overload Shots . | . . . . . Overflow Damage . | . . . . . Projectiles . | . . . . . Explosions . | . . . . . Melee . | . . . . . Knockbacks 4 | . . 4 . . Impact . | . . . . . Kinetic 4 | . . 4 . . Secondary . | . . . . . Self-Inflicted Damage . | . . . . . Shots . | . . . . . Rammed . | . . . . . Targets Rammed . | . . . . . Kicked . | . . . . . Crushed . | . . . . . Highest Temperature 624 | . 336 . 624 435 Average Temperature 118 | . 93 . 120 131 Received Heat Transfer 1920 | . 312 177 873 558 Effects 13 | . 1 . 10 2 Shutdowns 4 | . 1 . 2 1 Interference 4 | . . . 4 . Matter Decay 3 | . . . 2 1 Damage (minor) 2 | . . . 2 . Siege Activations . | . . . . . Martial Activations . | . . . . . Shielding Activations . | . . . . . Robots Disrupted . | . . . . . Combat Hostiles . | . . . . . Robots Corrupted . | . . . . . Combat Hostiles . | . . . . . Parts Fried . | . . . . . Impact Corruptions . | . . . . . Robots Melted 2 | . . . 1 1 Combat Hostiles 2 | . . . 1 1 Parts Melted 9 | . . . 4 5 Heat Transferred 8611 | . 481 1013 3946 3171 Parts Sabotaged . | . . . . . Parts Stolen . | . . . . . Parts Stripped . | . . . . . Power Chain Reactions . | . . . . . Alert | -11 -10 -10 -8 -8 ------- Run | Yrd Mat Sub Mat Gar Maximum Alert Level 2 | . . . 1 2 Low Security (%) 83 | 100 100 . 95 22 Level 1 13 | . . . 4 60 Level 2 3 | . . . . 17 Level 3 . | . . . . . Level 4 . | . . . . . Level 5 . | . . . . . High Security . | . . . . . Max Security . | . . . . . Peak Influence 480 | 5 100 . 216 480 Initial 126 | . . . 27 126 Average 115 | . 43 . 109 290 Influence Increases 1726 | 5 473 65 769 414 Destroy 0b10 Robot/C 1200 | . 320 40 500 340 Destroy 0b10 Robot/NC 45 | 5 20 . 20 . Destroy Leader 238 | . 86 10 112 30 Successful Hack 56 | . 14 . 28 14 Destroy Structure 7 | . 3 . 4 . Partial Spotted 15 | . . . 15 . Lose Combat Pursuer 165 | . 30 15 90 30 Influence Decreases 1266 | 5 426 59 628 148 Entered New Map 117 | . . 23 26 68 Time Decay 928 | 5 415 36 472 . Lost Part 221 | . 11 . 130 80 Squads Dispatched 7 | . 4 . 3 . Investigation 4 | . 3 . 1 . Extermination . | . . . . . Reinforcement 2 | . 1 . 1 . Assault . | . . . . . Garrison 1 | . . . 1 . Intercept . | . . . . . Searches Triggered . | . . . . . Construction Impeded . | . . . . . Haulers Reinforced . | . . . . . Active Scanning Responses . | . . . . . Cargo Convoy Interrupts . | . . . . . Stealth | -11 -10 -10 -8 -8 --------- Run | Yrd Mat Sub Mat Gar Distress Signals 11 | . 3 . 8 . Communications Jammed . | . . . . . Distress Signals . | . . . . . Times Spotted 97 | . 22 9 46 20 Peak Tracking Total 5 | . 3 2 5 4 Tactical Retreats 10 | . 2 1 5 2 Traps | -11 -10 -10 -8 -8 ------- Run | Yrd Mat Sub Mat Gar Traps Triggered 9 | . 1 . . 8 Indirectly . | . . . . . Trap Hack Attempts . | . . . . . Triggered . | . . . . . Disarmed . | . . . . . Reprogrammed . | . . . . . Reused . | . . . . . Traps Extracted . | . . . . . Installed . | . . . . . Triggered . | . . . . . Most Traps Carried 1 | . . 1 1 . Machines | -11 -10 -10 -8 -8 ---------- Run | Yrd Mat Sub Mat Gar Machines Disabled 1 | . . . . 1 Max in Single Turn 1 | . . . . 1 Machines Repaired . | . . . . . Machines Dismantled . | . . . . . Machines Sabotaged . | . . . . . Overloaded Fab Kills . | . . . . . Hacking | -11 -10 -10 -8 -8 --------- Run | Yrd Mat Sub Mat Gar Machines Accessed 11 | . 4 . 6 1 Terminals 8 | . 3 . 4 1 Fabricators . | . . . . . Repair Stations 1 | . 1 . . . Recycling Units . | . . . . . Scanalyzers 1 | . . . 1 . Garrison Access 1 | . . . 1 . Total Hacks 32 | . 15 . 16 1 Successful 20 | . 9 . 10 1 Failed 12 | . 6 . 6 . Catastrophic 5 | . 2 . 3 . Database Lockouts . | . . . . . Manual 16 | . 4 . 12 . Terminals 22 | . 9 . 12 1 Fabricators . | . . . . . Repair Stations 6 | . 6 . . . Recycling Units . | . . . . . Scanalyzers 3 | . . . 3 . Garrison Access 1 | . . . 1 . Terminal Hacks 4 | . 2 . 1 1 Prototype ID Bank 1 | . 1 . . . Emergency Access Points 1 | . . . . 1 Terminal Index 1 | . . . 1 . Alert Level 1 | . 1 . . . Fabricator Hacks . | . . . . . Repair Station Hacks 6 | . 6 . . . Scan Component 3 | . 3 . . . Repair 3 | . 3 . . . Recycling Unit Hacks . | . . . . . Scanalyzer 3 | . . . 3 . Insert Component 1 | . . . 1 . Analyze 1 | . . . 1 . Retrieve Study 1 | . . . 1 . Garrison Access Hacks 1 | . . . 1 . Unlock Access 1 | . . . 1 . Unauthorized Hacks 6 | . 1 . 5 . Terminals 6 | . 1 . 5 . Botnet 5 | . 1 . 4 . Operators 1 | . . . 1 . Fabricators . | . . . . . Repair Stations . | . . . . . Recycling Units . | . . . . . Scanalyzers . | . . . . . Garrison Access . | . . . . . Data Cores Recovered . | . . . . . Used . | . . . . . Hacking Detections 9 | . 4 . 5 . Full Trace Events 4 | . 2 . 2 . Feedback Events . | . . . . . Feedback Blocked . | . . . . . Robot Schematics Acquired . | . . . . . Robots Built . | . . . . . Authchips . | . . . . . Time . | . . . . . Total Robot Build Rating . | . . . . . Part Schematics Acquired 1 | . . . 1 . Parts Built . | . . . . . Authchips . | . . . . . Time . | . . . . . Total Part Build Rating . | . . . . . Part Studies Acquired 1 | . . . 1 . Parts Repaired 3 | . 3 . . . Time 90 | . 90 . . . Parts Recycled . | . . . . . Recycled Matter . | . . . . . Retrieved Matter . | . . . . . Retrieved Components . | . . . . . Parts Scanalyzed 1 | . . . 1 . Part Schematics Acquired 1 | . . . 1 . Parts Damaged . | . . . . . Bothacking | -11 -10 -10 -8 -8 ------------ Run | Yrd Mat Sub Mat Gar Used RIF Installer . | . . . . . Robots Hacked . | . . . . . Non-combat . | . . . . . Combat . | . . . . . Robot Hacks Applied . | . . . . . Relay Couplers Released 3 | . . . . 3 Programmers 3 | . . . . 3 Fabnet Peak Effective % . | . . . . . Robots Rewired . | . . . . . Allies Hacked . | . . . . . Hacks Repelled . | . . . . . Allies | -11 -10 -10 -8 -8 -------- Run | Yrd Mat Sub Mat Gar Total Allies . | . . . . . Largest Group . | . . . . . Highest-Rated Group . | . . . . . Highest-Rated Ally . | . . . . . Total Orders . | . . . . . Ally Attacks . | . . . . . Total Damage . | . . . . . Kills . | . . . . . Allies Corrupted . | . . . . . Allies Melted . | . . . . . Intel | -11 -10 -10 -8 -8 ------- Run | Yrd Mat Sub Mat Gar Active Infowar (turns) 1774 | 21 1100 . 653 . Optics 110 | . . . 110 . Sensors 543 | . . . 543 . Seismic 1121 | 21 1100 . . . Robot Analysis Total . | . . . . . Derelict Logs Recovered . | . . . . . Drone Launches . | . . . . . Drone Recoveries . | . . . . . Exploration | -11 -10 -10 -8 -8 ------------- Run | Yrd Mat Sub Mat Gar Turns Passed 6687 | 112 1584 2348 1844 799 Spaces Moved 2952 | 56 682 1206 649 359 Core 6 | 6 . . . . Treads 2214 | 50 682 1200 282 . Legs . | . . . . . Wheels 732 | . . 6 367 359 Hover . | . . . . . Flight . | . . . . . Fastest Speed 50 | 50 160 95 100 100 Average Speed 154 | 148 160 159 154 129 Slowest Speed 250 | 160 160 160 250 130 Overloaded Moves . | . . . . . Propulsion Burnouts . | . . . . . Robots Hopped . | . . . . . Potential Cave-ins . | . . . . . Cave-ins Triggered . | . . . . . Exploration Rate (%) 41 | 4 78 28 45 51 Regions Visited 4 Branch Regions 1 Pre-discovered Areas 1 | . . 1 . . Known Exits Taken 1 | . . . 1 . Unknown Exits Taken 3 | 1 1 1 . . Scrap Searched . | . . . . . Spaces Dug . | . . . . . Terrain Destroyed . | . . . . . Melee . | . . . . . Projectile . | . . . . . AOE . | . . . . . Terrain Rammed . | . . . . . Walls Destroyed . | . . . . . Machines Disabled . | . . . . . Actions | -11 -10 -10 -8 -8 --------- Run | Yrd Mat Sub Mat Gar Total 4406 | 80 1028 1419 1309 570 Wait 922 | 10 257 73 511 71 Move 2949 | 55 681 1205 649 359 Hop . | . . . . . Pick Up 41 | 7 8 8 17 1 Fast Attach 23 | 7 4 4 6 2 Attach 21 | . 1 2 12 6 Detach . | . . . . . Swap 31 | . 3 16 7 5 Drop 27 | . 2 11 10 4 Fire 328 | 1 72 100 97 58 Melee . | . . . . . Ram . | . . . . . Kick . | . . . . . Crush . | . . . . . Escape Stasis 64 | . . . . 64 Rewire . | . . . . . Trap . | . . . . . Miscellaneous . | . . . . . Route ------- -11/Scrapyard -10/Materials (discovered 4 exits: [*Mat x2] / [*Min] / [*Sub]) -10/Subcaves -8/Materials (discovered 3 exits: [*Fac x2] / Gar) -8/Garrison (discovered 2 exits: [*Mat x2]) History --------- Turn | Location | Event 6 | -11/Scrapyard | Discovered new exit (range 15) 113 | -11/Scrapyard | Entered Materials 313 | -10/Materials | Build established: Mutant 433 | -10/Materials | Discovered new exit (range 16) 875 | -10/Materials | Discovered new exit (range 6) 934 | -10/Materials | Discovered new exit (range 15) 1355 | -10/Materials | Repaired Lgt. Treads 1382 | -10/Materials | Repaired Lgt. Treads 1422 | -10/Materials | Repaired Lgt. Nuclear Core 1461 | -10/Materials | Discovered new exit (range 16) 1697 | -10/Materials | Entered Subcaves 1698 | -10/Subcaves | Approached by a straggling Scientist 1744 | -10/Subcaves | Shifting Twisted Machinery released Mak. Shrapnel Gun 1744 | -10/Subcaves | Shifting Twisted Machinery released Sub. Laser 1851 | -10/Subcaves | Learned location of Zion (-7) 1851 | -10/Subcaves | Met a Zionite searching for "candidates" 1917 | -10/Subcaves | Shifting Twisted Machinery released Sub. Monowheel 2006 | -10/Subcaves | Shifting Twisted Machinery released Flamer 2017 | -10/Subcaves | Core integrity fell below 50% 2057 | -10/Subcaves | A swath of the cavern ceiling suddenly collapsed 2125 | -10/Subcaves | Shifting Twisted Machinery released Shrapnel Trap 3227 | -10/Subcaves | Curiously followed by a Cobbler waking with a query about "LVR3C" 3396 | -10/Subcaves | Discovered new exit (range 7) 3931 | -10/Subcaves | Build established: Derelict-Mutant 4045 | -10/Subcaves | Entered Materials 4045 | -8/Materials | Evolved 4 slots: Propulsion x1, Utility x2, Weapon x1 4418 | -8/Materials | Build established: Derelict-Tank 4617 | -8/Materials | Lost 4 parts (1p3w) 4974 | -8/Materials | Build established: Scavenger-Skirmisher 4997 | -8/Materials | Discovered new exit (range 10) 5251 | -8/Materials | Lost 5 parts (1n2u2w) 5587 | -8/Materials | Build established: Scavenger-Tank 5658 | -8/Materials | Discovered new exit (range 16) 5803 | -8/Materials | Garrison activated, responded to threat 5889 | -8/Materials | Identified exit to Garrison 5889 | -8/Materials | Entered Garrison 5941 | -8/Garrison | Triggered checkpoint 5966 | -8/Garrison | Core integrity fell below 50% 6113 | -8/Garrison | Triggered checkpoint 6281 | -8/Garrison | Triggered checkpoint 6352 | -8/Garrison | Discovered new exit (range 10) 6411 | -8/Garrison | Triggered checkpoint 6559 | -8/Garrison | Triggered checkpoint 6623 | -8/Garrison | Discovered new exit (range 10) 6660 | -8/Garrison | Core integrity fell below 20% 6688 | -8/Garrison | Destroyed by H-55 Commando with Gauss Rifle Last Messages --------------- 06560_ S-10 Pest unfolds itself. 06561_ S-10 Pest destroyed. 06578_ Acquired 10 matter. 06605_ System corrupted: Heat flow error (+298). 06623_ EXIT=FOUND 06649_ L-31 Rogue springs to life. 06649_ X-62 Marksman springs to life. 06651_ Machine disabled. 06651_ Slug penetrates Wall. 06659_ Penetrated by Slug. 06661_ Slug penetrates Wall. 06664_ Hrd. Medium Armor Plating severed. 06667_ Lgt. Nuclear Core destroyed. 06672_ L-31 Rogue destroyed. 06672_ Switching to secondary target: H-55 Commando. 06673_ System corrupted: Substantial component data lost. 06676_ Destroyed Lgt. Nuclear Core. 06676_ Particle Gun destroyed. 06679_ Penetrated by Slug. 06685_ Aluminum Leg destroyed. Map ----- +----------------------------------------------------+ | | | | | | | | | | | ?????????????????????????????????????????????????? | | ?????????????????????????????????????????????????? | | ?????????????????????????????????????????????????? | | ?????????????????????????????????????????????????? | | ?????????????????????????????????????????????????? | | ?????????????????????????????????????????????????? | | ?????????????????????????????????????????????????? | | ?????????????????????????????????????????????????? | | ?????????????????????#####???????????????????????? | | ?????????????????????# ???????????????????????? | | ?????????????????????#